bitfinex/quotes_ETHUSD_20250404
["timestamp","ask_amount","ask_price","bid_price","bid_amount"]
[1743799111550,6.28898,1817.4,1817.1,5.67519673]
[1743799111747,6.28898,1817.4,1817.1,0.17194673]
[1743799112093,5.50238,1817.4,1817.1,5.67519673]
[1743799112250,11.005,1817.4,1817.1,0.17194673]
[1743799112451,5.50266,1817.3,1817.1,0.17194673]
[1743799112866,5.50266,1817.3,1817.0,11.99809673]
[1743799113072,11.00501,1817.4,1817.0,13.1979564]
[1743799113274,5.50238,1817.4,1817.1,0.17194673]
[1743799113558,11.00491,1817.4,1817.1,5.67520673]
[1743799113772,11.00491,1817.4,1817.1,0.17194673]
[1743799114194,11.00502,1817.4,1817.0,7.6946264]
[1743799114696,5.50245,1817.4,1817.0,7.6945164]
[1743799114993,0.8036,1817.3,1817.0,0.17194673]
[1743799115198,5.5031,1817.2,1816.9,5.67577673]
[1743799115565,5.258,1817.1,1816.9,0.17194673]
[1743799115767,5.50359,1817.0,1816.8,0.17194673]
[1743799116470,5.50359,1817.0,1816.7,5.50441]
[1743799116471,5.50359,1817.0,1816.7,5.67635673]
[1743799116805,10.76138,1817.1,1816.7,5.67629673]
[1743799117092,10.76128,1817.1,1816.8,5.50405]
[1743799117302,10.76128,1817.1,1816.7,5.67641673]
[1743799117303,16.26477,1817.1,1816.7,5.67641673]
[1743799117449,5.258,1817.1,1816.8,5.50398]
[1743799117854,10.76128,1817.1,1816.8,5.50398]
[1743799118405,10.76128,1817.1,1816.8,0.17194673]
[1743799118603,5.50361,1817.0,1816.8,0.17194673]
[1743799118900,10.76128,1817.1,1816.7,11.18073673]
[1743799118901,16.26471,1817.1,1816.7,11.18073673]
[1743799119102,5.50363,1817.0,1816.7,5.67632673]
[1743799119310,11.77771,1817.0,1816.7,0.17194673]
[1743799119489,6.27393,1817.0,1816.7,5.67640673]
[1743799119697,6.27393,1817.0,1816.7,5.50446]
[1743799120715,6.27393,1817.0,1816.7,5.67643519]
[1743799121400,6.27393,1817.0,1816.7,11.18080519]
[1743799121596,10.76134,1817.1,1816.7,6.87594571]
[1743799121783,10.76134,1817.1,1816.8,0.17197519]
[1743799121988,16.26477,1817.1,1816.8,0.17197519]
[1743799122288,16.26477,1817.1,1816.7,6.87594571]
[1743799122506,5.50362,1817.0,1816.7,6.87594571]
[1743799122802,5.50362,1817.0,1816.8,0.17197519]
[1743799123302,5.50362,1817.0,1816.7,6.87594571]
[1743799123601,11.00741,1817.0,1816.7,0.17197519]
[1743799123971,5.50393,1816.9,1816.7,0.17197519]
[1743799124598,5.50393,1816.9,1816.6,6.31989]
[1743799124799,5.50434,1816.8,1816.4,5.50528]
[1743799125006,10.76258,1816.7,1816.4,5.50528]
[1743799125303,10.76258,1816.7,1816.5,0.17199801]
[1743799125603,10.76258,1816.7,1816.6,0.17199801]
[1743799127106,5.258,1816.7,1816.6,0.17199801]
[1743799127902,5.258,1816.7,1816.6,0.97879801]
[1743799128115,5.258,1816.7,1816.6,7.13195681]
[1743799128316,5.258,1816.7,1816.6,1.62717681]
[1743799128521,5.258,1816.7,1816.6,0.97879801]
[1743799128817,5.258,1816.7,1816.6,6.48357801]
[1743799128988,5.258,1816.7,1816.6,6.65558773]
[1743799130121,5.258,1817.0,1816.8,5.50388]
[1743799130280,5.258,1817.0,1816.9,5.67582801]
[1743799130480,5.258,1817.0,1816.9,6.49882801]
[1743799130886,5.50303,1817.2,1816.9,6.49882801]
[1743799131110,5.259,1817.1,1816.9,6.49882801]
[1743799131315,5.50303,1817.2,1816.9,6.49882801]
[1743799131482,5.259,1817.1,1817.0,5.67556801]
[1743799131700,5.259,1817.1,1817.0,5.84757773]
[1743799132079,5.259,1817.1,1817.0,0.34400773]
[1743799136731,5.259,1817.1,1817.0,0.17199801]
[1743799137231,10.76227,1817.1,1817.0,0.17199801]
[1743799137414,11.53507,1817.1,1817.0,0.17199801]
[1743799138238,5.259,1817.1,1817.0,0.17199801]
[1743799138626,5.258,1817.2,1817.1,5.50317]
[1743799139030,5.258,1817.2,1817.1,5.67516801]
[1743799139427,5.258,1817.2,1817.1,0.17199801]
[1743799139899,5.258,1817.2,1817.1,0.34400773]
[1743799142346,11.55727,1817.2,1817.1,0.34400773]
[1743799142844,11.55727,1817.2,1817.1,0.17199801]
[1743799145165,10.76097,1817.2,1817.1,0.17199801]
[1743799147337,14.99746055,1817.2,1817.1,0.17199801]
[1743799148261,5.50379,1817.0,1816.7,0.17200972]
[1743799148562,5.50389,1816.9,1816.8,0.17198854]
[1743799149464,5.50389,1816.9,1816.8,0.34399826]
[1743799149969,9.49449055,1817.2,1816.9,6.30395]
[1743799149970,5.258,1817.2,1816.9,6.30395]
[1743799150119,5.258,1817.2,1817.0,6.133825]
[1743799150323,5.258,1817.2,1817.0,0.80238354]
[1743799150719,5.258,1817.2,1817.1,0.17200972]
[1743799151060,10.76097,1817.2,1817.1,0.34399826]
[1743799152177,5.258,1817.2,1817.1,0.34399826]
[1743799152320,5.258,1817.2,1817.1,0.17198854]
[1743799153224,5.258,1817.2,1817.1,5.67525854]
[1743799153642,5.258,1817.2,1817.1,0.34399826]
[1743799154265,5.258,1817.2,1817.1,0.92874409]
[1743799154469,24.758,1817.5,1817.2,6.29684]
[1743799154624,24.758,1817.5,1817.3,5.50256]
[1743799154625,30.015,1817.5,1817.3,5.50256]
[1743799154962,30.015,1817.5,1817.4,0.17198854]
[1743799155958,30.015,1817.5,1817.4,0.34399826]
[1743799158176,24.758,1817.5,1817.4,5.84635826]
[1743799158464,3.0,1817.9,1817.5,0.806]
[1743799158779,5.257,1817.9,1817.6,5.50176]
[1743799158921,5.257,1817.9,1817.7,5.50134]
[1743799159125,5.257,1818.0,1817.9,5.50083]
[1743799159353,5.257,1818.0,1817.8,6.47908854]
[1743799159555,5.257,1818.0,1817.9,0.17198854]
[1743799161274,10.75755,1818.0,1817.9,0.17198854]
[1743799161931,11.53805,1818.0,1817.9,0.17198854]
[1743799163775,10.75755,1818.0,1817.9,0.17198854]
[1743799165625,13.75755,1818.0,1817.9,0.17198854]
[1743799165941,18.36856556,1818.0,1817.9,0.17198854]
[1743799166250,5.5014,1817.8,1817.5,0.17198854]
[1743799166479,5.50151,1817.7,1817.5,0.17198854]
[1743799166679,5.50151,1817.7,1817.4,6.29215]
[1743799166680,5.255,1817.6,1817.4,6.29215]
[1743799166892,5.255,1817.6,1817.4,7.471625]
[1743799167272,5.255,1817.6,1817.4,7.471605]
[1743799167474,5.255,1817.6,1817.5,5.50206]
[1743799167791,5.255,1817.6,1817.5,0.171907]
[1743799168207,5.255,1817.6,1817.5,5.673967]
[1743799168359,5.255,1817.6,1817.5,7.6930342]
[1743799168560,5.255,1817.6,1817.5,0.955407]
[1743799168785,5.255,1817.6,1817.5,0.171907]
[1743799172227,5.255,1817.6,1817.5,6.461367]
[1743799172579,5.255,1817.8,1817.5,6.63320823]
[1743799172774,5.255,1817.8,1817.6,5.50165]
[1743799172979,5.255,1817.8,1817.6,5.673637]
[1743799173228,5.255,1817.8,1817.7,0.171907]
[1743799173433,10.75615,1817.8,1817.7,0.171907]
[1743799173643,11.52055,1817.8,1817.7,0.171907]
[1743799173805,14.52055,1817.8,1817.7,0.171907]
[1743799174385,5.50166,1817.7,1817.3,0.7698]
[1743799174602,14.5206,1817.8,1817.4,11.00448]
[1743799174831,5.255,1817.7,1817.5,0.17190782]
[1743799174989,16.25817,1817.7,1817.5,0.17190782]
[1743799175196,10.75654,1817.7,1817.5,0.17190782]
[1743799175490,10.75654,1817.7,1817.6,0.17190782]
[1743799175925,11.55104,1817.7,1817.6,0.17190782]
[1743799176832,10.75654,1817.7,1817.6,0.17190782]
[1743799177039,5.255,1817.7,1817.6,0.17190782]
[1743799177402,3.0,1817.8,1817.6,0.17190782]
[1743799177601,5.255,1817.7,1817.6,0.17190782]
[1743799177848,5.255,1817.7,1817.6,6.14523278]
[1743799177996,5.255,1817.7,1817.6,0.64347278]
[1743799178197,5.255,1817.7,1817.6,0.81537222]
[1743799179237,5.255,1817.7,1817.6,0.17189944]
[1743799179943,10.75645,1817.7,1817.6,0.17189944]
[1743799183453,11.54125,1817.7,1817.6,0.17189944]
[1743799184306,10.75645,1817.7,1817.6,0.17189944]
[1743799185146,13.75645,1817.7,1817.6,0.17189944]
[1743799185335,14.54125,1817.7,1817.6,0.17189944]
[1743799186339,5.255,1817.7,1817.6,0.17189944]
[1743799186540,5.50056,1818.0,1817.7,6.27543]
[1743799186726,5.255,1817.9,1817.8,0.17189944]
[1743799186938,5.255,1817.9,1817.8,5.67304944]
[1743799187122,5.255,1817.9,1817.8,1.36673338]
[1743799187321,10.75585,1817.9,1817.8,0.17189944]
[1743799188255,13.75585,1817.9,1817.8,0.17189944]
[1743799193164,13.75585,1817.9,1817.8,0.17189944]
[1743799201200,18.97076556,1817.9,1817.8,0.17189944]
[1743799201500,8.50145,1817.7,1817.6,0.40891304]
[1743799201875,30.80705,1818.2,1817.7,0.754]
[1743799201876,5.50067,1818.0,1817.7,0.754]
[1743799202051,5.255,1817.9,1817.7,6.89806583]
[1743799202254,8.255,1817.9,1817.8,0.17192826]
[1743799202462,8.255,1817.9,1817.8,0.58026798]
[1743799202668,5.255,1817.9,1817.8,0.58026798]
[1743799202869,8.255,1817.9,1817.8,0.58026798]
[1743799203087,13.75585,1817.9,1817.8,0.58026798]
[1743799203292,13.75585,1817.9,1817.8,0.75216959]
[1743799204098,30.25699,1818.2,1817.9,0.7596]
[1743799204262,5.255,1818.1,1817.9,1.46086796]
[1743799204678,5.255,1818.1,1818.0,0.17190161]
[1743799204901,10.75524,1818.1,1818.0,0.75172443]
[1743799205078,5.50024,1818.1,1818.0,0.75172443]
[1743799205278,10.75524,1818.1,1818.0,0.75172443]
[1743799206511,10.75524,1818.1,1818.0,0.34382987]
[1743799207491,13.75524,1818.1,1818.0,0.17192826]
[1743799207914,8.255,1818.1,1818.0,0.17192826]
[1743799208214,13.75524,1818.1,1818.0,0.17192826]
[1743799209318,13.75524,1818.1,1818.0,0.34381162]
[1743799210317,13.75524,1818.1,1818.0,0.17192826]
[1743799213014,8.255,1818.1,1818.0,0.93672826]
[1743799213182,8.255,1818.1,1818.0,1.1086042]
[1743799213386,8.255,1818.1,1818.0,1.51595188]
[1743799213835,3.0,1818.1,1818.0,1.51595188]
[1743799214128,8.254,1818.1,1818.0,1.51595188]
[1743799214512,13.75424,1818.1,1818.0,1.51595188]
[1743799214685,13.75424,1818.1,1818.0,1.1086042]
[1743799215396,13.75424,1818.1,1818.0,0.3438042]
[1743799215920,8.254,1818.1,1818.0,0.3438042]
[1743799216698,8.253,1818.1,1818.0,1.52515933]
[1743799217530,13.75324,1818.1,1818.0,1.52515933]
[1743799217702,13.75324,1818.1,1818.0,0.75115933]
[1743799218258,13.75324,1818.1,1818.0,0.3438042]
[1743799218619,8.253,1818.1,1818.0,0.3438042]
[1743799219003,13.75324,1818.1,1818.0,0.75115933]
[1743799219426,13.75324,1818.1,1818.0,0.3438042]
[1743799220121,14.55884,1818.1,1818.0,0.3438042]
[1743799220581,14.55884,1818.1,1818.0,0.17187594]
[1743799221324,5.50115,1817.8,1817.7,0.40744202]
[1743799221802,9.30675,1817.8,1817.7,0.40744202]
[1743799222017,9.30675,1817.8,1817.7,0.57936256]
[1743799222215,9.30675,1817.8,1817.7,0.17192054]
[1743799223812,8.50176,1817.6,1817.5,0.17192727]
[1743799224146,13.75476,1817.6,1817.5,0.34383792]
[1743799224440,13.75476,1817.6,1817.5,0.17191065]
[1743799226043,5.253,1817.6,1817.5,5.67379065]
[1743799226247,5.253,1817.6,1817.5,7.08662972]
[1743799226547,5.253,1817.6,1817.5,11.3402289]
[1743799227448,5.253,1817.6,1817.5,11.51211645]
[1743799228163,5.253,1817.6,1817.5,7.66620089]
[1743799229354,10.75476,1817.6,1817.5,0.75148182]
[1743799229516,10.75476,1817.6,1817.5,0.57959427]
[1743799229918,13.75476,1817.6,1817.5,0.17191065]
[1743799232520,8.254,1817.6,1817.5,0.17191065]
[1743799233050,13.75576,1817.6,1817.5,0.17191065]
[1743799233356,13.75576,1817.6,1817.5,0.34383244]
[1743799234627,13.75576,1817.6,1817.5,0.17191065]
[1743799237147,14.54936,1817.6,1817.5,0.17191065]
[1743799239458,13.75576,1817.6,1817.5,0.17191065]
[1743799249968,13.75576,1817.6,1817.5,0.34384654]
[1743799252075,13.75576,1817.6,1817.5,0.75275929]
[1743799256181,13.75576,1817.6,1817.5,0.34384654]
[1743799256346,13.75576,1817.6,1817.5,0.17191065]
[1743799256547,13.75576,1817.6,1817.5,1.4076234]
[1743799256754,13.75576,1817.6,1817.5,0.5808234]
[1743799257055,13.75576,1817.6,1817.5,0.17191065]
[1743799258356,13.75576,1817.6,1817.5,0.58082655]
[1743799258890,13.75576,1817.6,1817.5,0.58084952]
[1743799259214,13.75576,1817.6,1817.5,0.75278314]
[1743799259790,14.51856,1817.6,1817.5,0.75278314]
[1743799259996,18.91447556,1817.6,1817.5,0.75278314]
[1743799260297,18.91447556,1817.6,1817.5,0.34386724]
[1743799260657,18.91447556,1817.6,1817.5,0.17193362]
[1743799260967,5.50327,1817.1,1817.0,0.58084952]
[1743799261172,10.75627,1817.1,1817.0,0.58084952]
[1743799261571,10.75627,1817.1,1817.0,0.75281607]
[1743799262869,13.75627,1817.1,1817.0,0.75281607]
[1743799263691,13.75627,1817.1,1817.0,0.34390017]
[1743799264495,13.75627,1817.1,1817.0,0.17196655]
[1743799265081,15.11177,1817.1,1817.0,0.17196655]
[1743799265483,5.50478,1816.6,1816.5,0.58084952]
[1743799265811,10.75878,1816.6,1816.5,0.58084952]
[1743799266210,10.75878,1816.6,1816.5,0.34395803]
[1743799266512,13.75878,1816.6,1816.5,0.17202441]
[1743799266718,14.58538,1816.6,1816.5,0.17202441]
[1743799266924,14.58538,1816.6,1816.3,0.58026531]
[1743799266925,5.50539,1816.4,1816.3,0.58026531]
[1743799267515,5.50539,1816.4,1816.3,0.17193362]
[1743799267720,8.50539,1816.4,1816.3,0.34398542]
[1743799268031,8.50539,1816.4,1816.3,0.17193362]
[1743799268344,8.50539,1816.4,1816.3,0.95813362]
[1743799268345,8.254,1816.4,1816.3,0.95813362]
[1743799268482,5.254,1816.4,1816.3,0.95813362]
[1743799268679,0.40733622,1816.6,1816.3,6.46382362]
[1743799268994,5.255,1816.5,1816.3,0.7862]
[1743799269191,10.76023,1816.5,1816.4,0.17202219]
[1743799269391,14.54043,1816.5,1816.4,0.17202219]
[1743799269813,5.50569,1816.3,1816.2,0.17202219]
[1743799270381,8.50569,1816.3,1816.2,0.17202219]
[1743799270580,5.506,1816.2,1816.1,0.1]
[1743799271285,5.506,1816.2,1816.1,0.27205506]
[1743799271984,5.506,1816.2,1816.1,0.1]
[1743799272604,8.50569,1816.3,1816.1,0.1]
[1743799273200,5.506,1816.2,1816.1,0.1]
[1743799274321,8.50569,1816.3,1816.1,0.1]
[1743799274526,8.5057,1816.3,1816.1,0.1]
[1743799274727,14.01168,1816.3,1816.1,0.1]
[1743799274919,5.506,1816.2,1816.1,0.1]
[1743799275838,8.5057,1816.3,1816.1,0.1]
[1743799276031,14.01161,1816.3,1816.1,0.1]
[1743799276230,5.506,1816.2,1816.1,0.1]
[1743799278743,8.506,1816.2,1816.1,0.1]
[1743799279506,9.2765,1816.2,1816.1,0.1]
[1743799279702,13.67241556,1816.2,1816.1,0.1]
[1743799281715,9.8265,1816.2,1816.1,0.1]
[1743799282229,34.5965,1816.2,1816.1,0.1]
[1743799282430,38.44241556,1816.2,1816.1,0.1]
[1743799284542,32.93641556,1816.2,1815.5,0.7997]
[1743799284717,11.0159,1815.6,1815.4,0.172047]
[1743799284916,5.257,1815.5,1815.3,0.995547]
[1743799285117,5.257,1815.5,1815.4,6.33182]
[1743799285321,5.257,1815.5,1815.4,7.53857386]
[1743799285523,5.257,1815.5,1815.4,0.995447]
[1743799285929,10.76512,1815.5,1815.4,0.995447]
[1743799286130,10.76512,1815.5,1815.4,0.8234]
[1743799288448,5.50842,1815.4,1815.3,0.17212469]
[1743799289042,16.27337,1815.5,1815.3,0.17212469]
[1743799289237,16.27342,1815.5,1815.3,0.17212469]
[1743799289435,10.76512,1815.5,1815.4,0.17212469]
[1743799289619,11.18367065,1815.5,1815.4,0.17212469]
[1743799290813,11.01525,1815.7,1815.4,0.98062469]
[1743799291015,8.258,1815.6,1815.4,1.62954916]
[1743799291343,13.7659,1815.6,1815.5,0.17212469]
[1743799292444,14.16867188,1815.6,1815.5,0.17212469]
[1743799293848,8.66077188,1815.6,1815.5,0.17212469]
[1743799294145,8.258,1815.6,1815.5,0.98142469]
[1743799294908,8.258,1815.6,1815.5,1.64760436]
[1743799295150,8.258,1815.6,1815.5,1.81970642]
[1743799295335,8.258,1815.6,1815.5,1.15352675]
[1743799295532,3.0,1815.9,1815.6,0.7632]
[1743799295861,5.50661,1816.0,1815.6,6.27102]
[1743799296013,5.50661,1816.0,1815.6,5.50782]
[1743799296014,5.258,1815.9,1815.6,5.50782]
[1743799296214,10.76513,1815.9,1815.7,0.34422675]
[1743799296416,16.2723,1815.9,1815.8,0.17212469]
[1743799296731,5.258,1815.9,1815.8,0.17212469]
[1743799296934,5.258,1815.9,1815.8,6.44253469]
[1743799297179,5.258,1815.9,1815.8,7.86765001]
[1743799297527,5.258,1815.9,1815.8,8.2757559]
[1743799298964,30.27611,1816.2,1815.8,8.2757559]
[1743799299258,5.257,1816.0,1815.9,0.58023058]
[1743799299462,5.257,1816.0,1815.9,6.90254058]
[1743799299657,5.50512,1816.5,1816.1,6.3217]
[1743799299833,8.257,1816.4,1816.2,0.40810589]
[1743799300264,8.257,1816.4,1816.3,0.17212469]
[1743799300465,8.257,1816.4,1816.3,0.34422675]
[1743799301162,13.76239,1816.4,1816.3,0.34422675]
[1743799301762,13.76239,1816.4,1816.3,0.17212469]
[1743799304562,8.257,1816.4,1816.3,0.17212469]
[1743799305166,13.76239,1816.4,1816.3,0.17212469]
[1743799306228,8.257,1816.4,1816.3,0.17212469]
[1743799306434,5.257,1816.4,1816.3,6.47300469]
[1743799306651,5.257,1816.4,1816.3,7.72888818]
[1743799306854,5.257,1816.4,1816.3,2.63126204]
[1743799307035,5.257,1816.4,1816.3,2.80330837]
[1743799307354,5.257,1816.4,1816.3,2.39535451]
[1743799308865,5.257,1816.4,1816.3,1.13947102]
[1743799309671,5.257,1816.4,1816.3,0.96742469]
[1743799309835,5.257,1816.4,1816.3,0.17212469]
[1743799310237,10.76239,1816.4,1816.3,0.17212469]
[1743799312771,5.257,1816.4,1816.3,0.17212469]
[1743799313272,10.76239,1816.4,1816.3,0.17212469]
[1743799314668,11.58789,1816.4,1816.3,0.17212469]
[1743799315073,10.76139,1816.4,1816.3,0.17212469]
[1743799315447,5.256,1816.4,1816.3,0.17212469]
[1743799316177,10.76139,1816.4,1816.3,0.17212469]
[1743799318250,16.26701,1816.4,1816.0,12.24575841]
[1743799318477,5.256,1816.4,1816.2,6.3312]
[1743799318678,10.7614,1816.4,1816.2,0.8253]
[1743799319571,10.7614,1816.4,1816.3,0.17203845]
[1743799320961,11.5859,1816.4,1816.3,0.17203845]
[1743799321359,5.506,1816.2,1815.9,0.57951585]
[1743799321565,11.01229,1816.2,1816.0,0.1720569]
[1743799322085,5.506,1816.2,1816.1,0.1720569]
[1743799322888,5.50583,1816.3,1816.1,0.1720569]
[1743799323047,11.0117,1816.3,1816.1,0.1720569]
[1743799323459,11.0117,1816.3,1816.2,0.1720569]
[1743799324046,11.58596,1816.4,1816.2,0.1720569]
[1743799324252,16.26704,1816.4,1816.2,0.1720569]
[1743799324452,5.50569,1816.3,1816.2,0.1720569]
[1743799325780,11.01098,1816.4,1816.2,0.58092112]
[1743799325980,5.256,1816.3,1816.2,0.58092112]
[1743799327177,5.256,1816.3,1816.2,0.75295934]
[1743799329284,10.76169,1816.3,1816.2,0.75295934]
[1743799331095,5.50546,1816.4,1816.2,0.75295934]
[1743799331296,5.255,1816.3,1816.2,0.75295934]
[1743799331480,5.255,1816.3,1816.2,0.58090244]
[1743799331796,5.255,1816.3,1816.2,0.34407461]
[1743799332122,5.255,1816.3,1816.2,0.75324184]
[1743799335404,10.76069,1816.3,1816.2,0.75324184]
[1743799337757,5.255,1816.3,1816.2,0.75324184]
[1743799338188,5.255,1816.5,1816.4,5.5053]
[1743799338389,5.255,1816.5,1816.3,6.28806]
[1743799338624,5.255,1816.5,1816.4,0.58120362]
[1743799338808,5.255,1816.5,1816.4,0.75324184]
[1743799340037,5.255,1816.5,1816.4,0.58120545]
[1743799340343,5.255,1816.5,1816.4,0.75322064]
[1743799341524,5.255,1816.5,1816.4,1.4573487]
[1743799344434,5.255,1816.5,1816.4,0.75322064]
[1743799345837,5.255,1816.5,1816.4,6.25861064]
[1743799346143,5.254,1816.5,1816.4,11.76400064]
[1743799346523,5.254,1816.6,1816.5,11.00997]
[1743799346712,5.254,1816.6,1816.5,6.25528]
[1743799346907,5.254,1816.6,1816.5,6.42731822]
[1743799347133,5.254,1816.6,1816.5,7.00850064]
[1743799352349,5.254,1816.6,1816.5,1.50352064]
[1743799352503,5.7794,1816.6,1816.5,0.75322064]
[1743799353227,5.7794,1816.6,1816.5,0.34405341]
[1743799353601,5.7794,1816.6,1816.5,0.75322064]
[1743799354117,5.254,1816.6,1816.5,0.34405341]
[1743799354298,5.254,1816.6,1816.5,0.75322064]
[1743799354745,10.75878,1816.6,1816.5,0.34405341]
[1743799354902,10.75878,1816.6,1816.5,0.75322064]
[1743799355441,10.75878,1816.6,1816.5,0.34405341]
[1743799355740,10.75878,1816.6,1816.5,0.75322064]
[1743799356203,5.254,1816.6,1816.5,0.75322064]
[1743799358594,10.75878,1816.6,1816.5,0.75322064]
[1743799358796,18.96499556,1816.6,1816.5,0.34405341]
[1743799358945,18.96499556,1816.6,1816.5,0.17203822]
[1743799359141,9.32259,1816.5,1816.4,0.40916723]
[1743799359348,5.50658,1816.1,1815.9,0.58120545]
[1743799359589,10.7596,1816.0,1815.9,0.58120545]
[1743799359742,5.253,1816.0,1815.9,0.58120545]
[1743799359946,10.7596,1816.0,1815.9,0.75326766]
[1743799361838,10.7596,1816.0,1815.9,0.34410043]
[1743799362677,10.7596,1816.0,1815.9,0.17206221]
[1743799362873,13.7596,1816.0,1815.9,0.17206221]
[1743799363275,18.42071556,1816.0,1815.9,0.17206221]
[1743799363485,11.0147,1815.8,1815.5,0.58120545]
[1743799363894,11.01459,1815.8,1815.5,1.19016699]
[1743799364064,11.01459,1815.8,1815.5,0.58120545]
[1743799364270,11.01459,1815.8,1815.6,0.17210378]
[1743799364600,11.01459,1815.8,1815.7,0.17210378]
[1743799365153,11.77299,1815.8,1815.7,0.17210378]
[1743799365354,6.26561,1815.8,1815.7,0.17210378]
[1743799366995,5.50751,1815.7,1815.6,0.17210378]
[1743799368479,8.50751,1815.7,1815.6,0.17210378]
[1743799368905,9.28321,1815.7,1815.6,0.17210378]
[1743799369074,5.50814,1815.5,1815.3,0.17203822]
[1743799369434,5.254,1815.4,1815.3,0.17203822]
[1743799369722,5.254,1815.4,1815.3,0.17212033]
[1743799370773,10.76242,1815.4,1815.3,0.17212033]
[1743799370973,11.56402,1815.4,1815.3,0.17212033]
[1743799371483,11.56402,1815.4,1815.2,0.17212033]
[1743799371699,11.56402,1815.4,1815.1,6.57569033]
[1743799372020,5.254,1815.4,1815.2,5.68112033]
[1743799372173,5.254,1815.4,1815.2,0.17212033]
[1743799372510,5.254,1815.4,1815.1,6.57569033]
[1743799372703,5.254,1815.4,1815.1,12.08487033]
[1743799372911,3.0,1815.6,1815.3,5.50873]
[1743799373114,5.255,1815.5,1815.4,6.32262]
[1743799373725,5.255,1815.5,1815.4,6.49474033]
[1743799378167,5.50664,1816.0,1815.4,6.49474033]
[1743799378168,31.08521,1816.1,1815.8,5.5071]
[1743799378465,5.255,1816.0,1815.8,5.50721]
[1743799378761,5.255,1816.0,1815.8,5.50711]
[1743799379928,24.777,1816.1,1815.9,5.50691]
[1743799380126,5.255,1816.0,1815.9,5.50681]
[1743799380464,5.255,1816.0,1815.9,6.62540493]
[1743799381048,5.255,1816.0,1815.9,6.79746419]
[1743799382749,5.255,1816.0,1815.9,1.29065419]
[1743799382951,5.255,1816.0,1815.9,0.17205926]
[1743799383135,5.255,1816.0,1815.9,5.67896926]
[1743799383684,11.5203,1816.0,1815.9,0.17205926]
[1743799384493,17.02709,1816.0,1815.7,0.17205926]
[1743799384805,5.50692,1815.9,1815.7,0.3441311]
[1743799385009,11.014,1815.9,1815.7,0.75198987]
[1743799385303,11.014,1815.9,1815.8,0.17205926]
[1743799385901,14.014,1815.9,1815.8,0.17205926]
[1743799386273,5.50722,1815.8,1815.6,0.17207184]
[1743799386609,8.50692,1815.9,1815.7,0.1720915]
[1743799387412,8.50692,1815.9,1815.8,0.1720915]
[1743799388276,3.0,1815.9,1815.8,0.1720915]
[1743799388609,10.76164,1816.0,1815.8,0.1720915]
[1743799388825,5.255,1816.0,1815.9,0.1720915]
[1743799389025,5.255,1816.0,1815.9,0.34416334]
[1743799389200,5.255,1816.0,1815.9,0.75202211]
[1743799389616,10.7616,1816.0,1815.9,0.75202211]
[1743799389815,10.7616,1816.0,1815.9,0.57995027]
[1743799390014,10.7616,1816.0,1815.9,0.1720915]
[1743799395620,11.5666,1816.0,1815.9,0.1720915]
[1743799397507,14.5666,1816.0,1815.9,0.1720915]
[1743799398114,5.50728,1815.8,1815.5,1.16398072]
[1743799398410,5.50728,1815.8,1815.6,0.40908072]
[1743799398411,5.50751,1815.7,1815.6,0.40908072]
[1743799398976,5.50751,1815.7,1815.6,0.58118302]
[1743799399376,5.50751,1815.7,1815.6,0.1721023]
[1743799399580,5.50728,1815.8,1815.6,0.1721023]
[1743799399777,8.50728,1815.8,1815.7,0.17209098]
[1743799400008,8.50728,1815.8,1815.7,0.34419328]
[1743799400215,3.0,1815.8,1815.7,0.34419328]
[1743799400421,5.255,1816.0,1815.7,6.51943661]
[1743799400717,5.255,1816.0,1815.8,0.58129071]
[1743799400718,16.26855,1816.0,1815.8,0.58129071]
[1743799401081,16.26855,1816.0,1815.9,0.40918841]
[1743799401409,16.26855,1816.0,1815.9,0.75338169]
[1743799401617,16.26855,1816.0,1815.9,0.34419328]
[1743799402113,16.26855,1816.0,1815.9,0.75338169]
[1743799402793,16.26855,1816.0,1815.9,0.34419328]
[1743799403411,10.76174,1816.0,1815.9,0.34419328]
[1743799403612,10.76174,1816.0,1815.9,0.75385769]
[1743799404195,10.76174,1816.0,1815.9,0.58176671]
[1743799404417,10.76174,1816.0,1815.9,0.1721023]
[1743799406119,10.76174,1816.0,1815.9,0.58195408]
[1743799406331,10.76174,1816.0,1815.9,0.75402974]
[1743799410535,5.50607,1816.2,1815.9,1.56202974]
[1743799410737,5.253,1816.1,1816.0,0.1721023]
[1743799410940,5.253,1816.1,1816.0,1.83951205]
[1743799411239,5.253,1816.1,1816.0,2.01158771]
[1743799411449,5.253,1816.1,1816.0,0.75402974]
[1743799411816,10.7593,1816.1,1816.0,0.75402974]
[1743799412650,28.99364877,1816.4,1816.0,0.75402974]
[1743799412651,24.776,1816.4,1816.0,0.75402974]
[1743799412824,5.253,1816.3,1816.2,0.808]
[1743799413149,5.253,1816.3,1816.2,6.4861023]
[1743799413317,5.253,1816.3,1816.2,1.56202974]
[1743799415853,5.253,1816.3,1816.2,2.81946671]
[1743799417755,5.253,1816.3,1816.2,8.32546671]
[1743799418349,24.776,1816.4,1816.3,5.50569]
[1743799418716,24.776,1816.4,1816.3,5.91554178]
[1743799419116,5.252,1816.5,1816.4,5.50539]
[1743799419315,5.252,1816.5,1816.4,6.66469341]
[1743799419543,5.252,1816.5,1816.4,7.24662085]
[1743799419832,5.252,1816.5,1816.4,7.41872315]
[1743799420238,5.252,1816.5,1816.4,1.91333315]
[1743799422348,5.252,1816.5,1816.4,1.50348137]
[1743799422720,5.252,1816.5,1816.4,7.00887137]
[1743799423317,5.252,1816.5,1816.4,7.41699492]
[1743799424539,5.252,1816.5,1816.4,7.00887137]
[1743799424956,5.252,1816.5,1816.4,1.50348137]
[1743799430754,5.252,1816.5,1816.4,7.00887137]
[1743799431129,5.252,1816.5,1816.4,7.41678859]